[Event "*** Titled Tuesday Blitz"]
[Site "Chess.com"]
[Date "2019.11.05"]
[Round "1"]
[White "Guenplen"]
[Black "Qvalda"]
[Result "1/2-1/2"]
[WhiteElo "2986"]
[BlackElo "2528"]
[TimeControl "180+2"]
[EndTime "13:13:29 PST"]
[Termination "Game drawn by repetition"]

1. Nf3 {[%clk 0:03:01.9]} 1... d5 {[%clk 0:02:57.4]} 2. e3 {[%clk 0:03:02.3]}
2... Nf6 {[%clk 0:02:57]} 3. c4 {[%clk 0:03:03.2]} 3... e6 {[%clk 0:02:58.2]} 4.
b3 {[%clk 0:03:03.9]} 4... Be7 {[%clk 0:02:57.3]} 5. Bb2 {[%clk 0:03:05.1]} 5...
O-O {[%clk 0:02:59.2]} 6. Nc3 {[%clk 0:03:06.1]} 6... c5 {[%clk 0:03:00.2]} 7.
cxd5 {[%clk 0:03:07.4]} 7... exd5 {[%clk 0:03:02.1]} 8. d4 {[%clk 0:03:08.6]}
8... Nc6 {[%clk 0:03:01.7]} 9. Be2 {[%clk 0:03:09.6]} 9... Bg4 {[%clk
0:02:52.4]} 10. dxc5 {[%clk 0:03:10]} 10... Bxc5 {[%clk 0:02:49.9]} 11. O-O
{[%clk 0:03:10.8]} 11... Re8 {[%clk 0:02:24.7]} 12. Rc1 {[%clk 0:03:10]} 12...
Bf8 {[%clk 0:02:02.7]} 13. Nd4 {[%clk 0:03:05]} 13... Bxe2 {[%clk 0:02:01.3]}
14. Ncxe2 {[%clk 0:03:05.4]} 14... Rc8 {[%clk 0:01:59.8]} 15. Nxc6 {[%clk
0:03:03.9]} 15... Rxc6 {[%clk 0:01:54.3]} 16. Nd4 {[%clk 0:02:58]} 16... Rxc1
{[%clk 0:01:51.4]} 17. Qxc1 {[%clk 0:02:59.9]} 17... Qd7 {[%clk 0:01:52.3]} 18.
Rd1 {[%clk 0:02:58.9]} 18... Rc8 {[%clk 0:01:51]} 19. Qa1 {[%clk 0:02:46.9]}
19... Ne4 {[%clk 0:01:48]} 20. h3 {[%clk 0:02:46]} 20... Bb4 {[%clk 0:01:39.7]}
21. Rc1 {[%clk 0:02:45.1]} 21... Rxc1+ {[%clk 0:01:23.6]} 22. Qxc1 {[%clk
0:02:45.2]} 22... h6 {[%clk 0:01:24.2]} 23. a3 {[%clk 0:02:39.8]} 23... Bf8
{[%clk 0:01:23.3]} 24. Qc2 {[%clk 0:02:37.7]} 24... a6 {[%clk 0:01:14.7]} 25.
Nf3 {[%clk 0:02:23.1]} 25... Qc6 {[%clk 0:01:04.2]} 26. Qxc6 {[%clk 0:02:20.7]}
26... bxc6 {[%clk 0:01:06.1]} 27. b4 {[%clk 0:02:21.5]} 27... c5 {[%clk
0:01:01.4]} 28. bxc5 {[%clk 0:02:23.4]} 28... Bxc5 {[%clk 0:00:59.8]} 29. Kf1
{[%clk 0:02:24.1]} 29... Kf8 {[%clk 0:00:58.3]} 30. Ke2 {[%clk 0:02:24.6]} 30...
g6 {[%clk 0:00:55.4]} 31. Ne5 {[%clk 0:02:23.2]} 31... Ke7 {[%clk 0:00:51.7]}
32. Nd3 {[%clk 0:02:21.6]} 32... Bd6 {[%clk 0:00:50.6]} 33. f3 {[%clk
0:02:12.9]} 33... Ng3+ {[%clk 0:00:48]} 34. Kf2 {[%clk 0:02:13.8]} 34... Nf5
{[%clk 0:00:22.8]} 35. g4 {[%clk 0:02:13.5]} 35... Nh4 {[%clk 0:00:21]} 36. f4
{[%clk 0:02:05.4]} 36... f5 {[%clk 0:00:20.1]} 37. Bg7 {[%clk 0:01:43.5]} 37...
fxg4 {[%clk 0:00:13.5]} 38. Bxh6 {[%clk 0:01:43.7]} 38... g3+ {[%clk 0:00:07.1]}
39. Ke2 {[%clk 0:01:44.9]} 39... Nf5 {[%clk 0:00:07.8]} 40. Bg5+ {[%clk
0:01:46.4]} 40... Ke6 {[%clk 0:00:08.6]} 41. a4 {[%clk 0:01:31]} 41... Be7
{[%clk 0:00:09.7]} 42. Bxe7 {[%clk 0:01:29.6]} 42... Kxe7 {[%clk 0:00:11.6]} 43.
Ne1 {[%clk 0:01:24.5]} 43... Kd6 {[%clk 0:00:11.3]} 44. Kf3 {[%clk 0:00:47]}
44... Kc5 {[%clk 0:00:11.8]} 45. Ng2 {[%clk 0:00:47.6]} 45... Kb4 {[%clk
0:00:10.9]} 46. Kg4 {[%clk 0:00:45.5]} 46... Kxa4 {[%clk 0:00:11.5]} 47. Kg5
{[%clk 0:00:46.9]} 47... Kb4 {[%clk 0:00:08.3]} 48. h4 {[%clk 0:00:45.9]} 48...
a5 {[%clk 0:00:06.8]} 49. h5 {[%clk 0:00:47.1]} 49... gxh5 {[%clk 0:00:07.9]}
50. Kxf5 {[%clk 0:00:48.4]} 50... a4 {[%clk 0:00:09.4]} 51. Ke6 {[%clk
0:00:17.3]} 51... a3 {[%clk 0:00:10.7]} 52. f5 {[%clk 0:00:18.9]} 52... a2
{[%clk 0:00:12.2]} 53. f6 {[%clk 0:00:20.8]} 53... a1=Q {[%clk 0:00:13.2]} 54.
Nf4 {[%clk 0:00:22.5]} 54... Qa6+ {[%clk 0:00:11.8]} 55. Kf5 {[%clk 0:00:20.5]}
55... Qb7 {[%clk 0:00:10]} 56. Kg6 {[%clk 0:00:20.3]} 56... h4 {[%clk 0:00:11]}
57. f7 {[%clk 0:00:21.5]} 57... Qc6+ {[%clk 0:00:11.9]} 58. Kg7 {[%clk
0:00:21.6]} 58... Qd7 {[%clk 0:00:12.1]} 59. Kf6 {[%clk 0:00:22.8]} 59... Qd8+
{[%clk 0:00:11.5]} 60. Kg7 {[%clk 0:00:23.9]} 60... Qg5+ {[%clk 0:00:12.2]} 61.
Kh7 {[%clk 0:00:24.2]} 61... Qf6 {[%clk 0:00:12.3]} 62. Kg8 {[%clk 0:00:24.9]}
62... Qg5+ {[%clk 0:00:12]} 63. Kh7 {[%clk 0:00:24.6]} 63... Qe7 {[%clk
0:00:12.8]} 64. Nxd5+ {[%clk 0:00:23.1]} 64... Kc4 {[%clk 0:00:03.5]} 65. Nxe7
{[%clk 0:00:25]} 65... g2 {[%clk 0:00:05.3]} 66. f8=Q {[%clk 0:00:24.9]} 66...
g1=Q {[%clk 0:00:06.6]} 67. Qf4+ {[%clk 0:00:25.8]} 67... Kd3 {[%clk 0:00:07.5]}
68. Qf5+ {[%clk 0:00:16.2]} 68... Ke2 {[%clk 0:00:06]} 69. Qh5+ {[%clk
0:00:16.8]} 69... Kd3 {[%clk 0:00:05]} 70. Qf5+ {[%clk 0:00:15.8]} 70... Ke2
{[%clk 0:00:05.6]} 71. Nd5 {[%clk 0:00:17.2]} 71... Qg3 {[%clk 0:00:03.7]} 72.
e4 {[%clk 0:00:16.8]} 72... h3 {[%clk 0:00:04.3]} 73. Nf4+ {[%clk 0:00:16.7]}
73... Ke3 {[%clk 0:00:05.5]} 74. Nd5+ {[%clk 0:00:10.7]} 74... Kd4 {[%clk
0:00:06.8]} 75. Qf6+ {[%clk 0:00:08.2]} 75... Kxe4 {[%clk 0:00:07.5]} 76. Nc3+
{[%clk 0:00:09.3]} 76... Kd3 {[%clk 0:00:06.7]} 77. Qa6+ {[%clk 0:00:10.1]}
77... Ke3 {[%clk 0:00:06.7]} 78. Qb6+ {[%clk 0:00:07.9]} 78... Kd3 {[%clk
0:00:06.9]} 79. Qb5+ {[%clk 0:00:08.7]} 79... Kxc3 {[%clk 0:00:07.7]} 80. Qa5+
{[%clk 0:00:09.2]} 80... Kc2 {[%clk 0:00:08.4]} 81. Qa2+ {[%clk 0:00:09.8]}
81... Kd1 {[%clk 0:00:09.4]} 82. Qb1+ {[%clk 0:00:10.6]} 82... Ke2 {[%clk
0:00:10.6]} 83. Qc2+ {[%clk 0:00:11.8]} 83... Kf1 {[%clk 0:00:11.9]} 84. Qc4+
{[%clk 0:00:11.5]} 84... Kg2 {[%clk 0:00:12.4]} 85. Qc2+ {[%clk 0:00:11.3]}
85... Qf2 {[%clk 0:00:13.2]} 86. Qc6+ {[%clk 0:00:11.2]} 86... Qf3 {[%clk
0:00:14.5]} 87. Qc2+ {[%clk 0:00:12]} 87... Kg3 {[%clk 0:00:15.9]} 88. Qc7+
{[%clk 0:00:12.8]} 88... Kf2 {[%clk 0:00:17.1]} 89. Qc2+ {[%clk 0:00:13.7]}
89... Qe2 {[%clk 0:00:18.3]} 90. Qf5+ {[%clk 0:00:14.8]} 90... Kg2 {[%clk
0:00:18.6]} 91. Qg5+ {[%clk 0:00:15.7]} 91... Kf1 {[%clk 0:00:19.7]} 92. Qc1+
{[%clk 0:00:15.4]} 92... Qe1 {[%clk 0:00:20.3]} 93. Qc4+ {[%clk 0:00:13.8]}
93... Kg2 {[%clk 0:00:20.9]} 94. Qc6+ {[%clk 0:00:11.6]} 94... Kg1 {[%clk
0:00:21.8]} 95. Qg6+ {[%clk 0:00:10]} 95... Kh1 {[%clk 0:00:21.2]} 96. Qc6+
{[%clk 0:00:10.3]} 96... Kh2 {[%clk 0:00:22.5]} 97. Qc2+ {[%clk 0:00:09.2]}
97... Kg1 {[%clk 0:00:23.2]} 98. Qg6+ {[%clk 0:00:10.2]} 98... Kf1 {[%clk
0:00:24]} 99. Qf5+ {[%clk 0:00:09.5]} 99... Kg2 {[%clk 0:00:24.7]} 100. Qg6+
{[%clk 0:00:10.5]} 100... Kf3 {[%clk 0:00:20.7]} 101. Qf5+ {[%clk 0:00:09.8]}
101... Kg3 {[%clk 0:00:21.5]} 102. Qg6+ {[%clk 0:00:09.7]} 102... Kh2 {[%clk
0:00:21.7]} 103. Qc2+ {[%clk 0:00:10.6]} 103... Kh1 {[%clk 0:00:13]} 104. Qc6+
{[%clk 0:00:11.1]} 104... Kg1 {[%clk 0:00:13.9]} 105. Qg6+ {[%clk 0:00:12]}
1/2-1/2

[Event "*** Titled Tuesday Blitz"]
[Site "Chess.com"]
[Date "2019.11.05"]
[Round "1"]
[White "alishersuleymenov"]
[Black "Tsschessulover"]
[Result "1/2-1/2"]
[WhiteElo "2786"]
[BlackElo "2438"]
[TimeControl "180+2"]
[EndTime "13:15:31 PST"]
[Termination "Game drawn by agreement"]

1. d4 {[%clk 0:03:01.5]} 1... Nf6 {[%clk 0:02:59.4]} 2. Nf3 {[%clk 0:03:02.7]}
2... g6 {[%clk 0:03:00.1]} 3. Bg5 {[%clk 0:03:03.7]} 3... Bg7 {[%clk 0:03:01.3]}
4. Nbd2 {[%clk 0:03:05.1]} 4... d5 {[%clk 0:03:02.2]} 5. c3 {[%clk 0:03:05.8]}
5... O-O {[%clk 0:03:03.2]} 6. e3 {[%clk 0:03:07.2]} 6... b6 {[%clk 0:03:01.7]}
7. Bd3 {[%clk 0:02:51.2]} 7... Bb7 {[%clk 0:02:59.6]} 8. Qb1 {[%clk 0:02:50.8]}
8... Nbd7 {[%clk 0:02:55.4]} 9. O-O {[%clk 0:02:44.4]} 9... c5 {[%clk
0:02:51.1]} 10. h3 {[%clk 0:02:25.8]} 10... Qc7 {[%clk 0:02:51]} 11. Bf4 {[%clk
0:02:25.8]} 11... Qc8 {[%clk 0:02:38.7]} 12. a4 {[%clk 0:02:24.3]} 12... Re8
{[%clk 0:02:36.6]} 13. Bh2 {[%clk 0:02:24.5]} 13... a6 {[%clk 0:02:09]} 14. b4
{[%clk 0:02:12.2]} 14... Qc6 {[%clk 0:02:03.6]} 15. b5 {[%clk 0:01:35.6]} 15...
Qc8 {[%clk 0:01:53.3]} 16. a5 {[%clk 0:01:29.1]} 16... axb5 {[%clk 0:01:48.4]}
17. Bxb5 {[%clk 0:01:17.1]} 17... bxa5 {[%clk 0:01:45.5]} 18. dxc5 {[%clk
0:01:15.9]} 18... Qxc5 {[%clk 0:01:41.1]} 19. Bxd7 {[%clk 0:01:14]} 19... Nxd7
{[%clk 0:01:30.2]} 20. Qxb7 {[%clk 0:01:14]} 20... Nb6 {[%clk 0:01:28.8]} 21.
Nb3 {[%clk 0:01:04.3]} 21... Qb5 {[%clk 0:00:54.9]} 22. Nbd4 {[%clk 0:01:05.1]}
22... Qa6 {[%clk 0:00:46.7]} 23. Qxa6 {[%clk 0:00:59.6]} 23... Rxa6 {[%clk
0:00:48.6]} 24. Rfb1 {[%clk 0:00:56.1]} 24... Nc4 {[%clk 0:00:44.4]} 25. Ra4
{[%clk 0:00:54.9]} 25... e5 {[%clk 0:00:41.1]} 26. Ne2 {[%clk 0:00:46.1]} 26...
Rea8 {[%clk 0:00:38.9]} 27. Nc1 {[%clk 0:00:34.7]} 27... Nb6 {[%clk 0:00:34]}
28. Ra2 {[%clk 0:00:35.7]} 28... f6 {[%clk 0:00:31.4]} 29. Nd2 {[%clk
0:00:29.7]} 29... a4 {[%clk 0:00:32.7]} 30. Nd3 {[%clk 0:00:30.5]} 30... Rc8
{[%clk 0:00:31.1]} 31. e4 {[%clk 0:00:25.2]} 31... Rxc3 {[%clk 0:00:28.9]} 32.
Nb4 {[%clk 0:00:26]} 32... Ra5 {[%clk 0:00:30.4]} 33. Nxd5 {[%clk 0:00:24.4]}
33... Nxd5 {[%clk 0:00:32.3]} 34. exd5 {[%clk 0:00:26.3]} 34... Rxd5 {[%clk
0:00:31.5]} 35. Ne4 {[%clk 0:00:21.5]} 35... Rb3 {[%clk 0:00:32.4]} 36. Rba1
{[%clk 0:00:18.9]} 36... f5 {[%clk 0:00:31.2]} 37. Nd2 {[%clk 0:00:17.4]} 37...
Rb4 {[%clk 0:00:32.7]} 38. Nf1 {[%clk 0:00:15.9]} 38... e4 {[%clk 0:00:33]} 39.
Rxa4 {[%clk 0:00:15.5]} 39... Bxa1 {[%clk 0:00:32.5]} 40. Rxb4 {[%clk
0:00:16.4]} 40... Rd1 {[%clk 0:00:33.3]} 41. Bf4 {[%clk 0:00:14.4]} 41... Bf6
{[%clk 0:00:34.7]} 42. Rb6 {[%clk 0:00:11.4]} 42... Kf7 {[%clk 0:00:33.7]} 43.
Rb7+ {[%clk 0:00:12.4]} 43... Ke6 {[%clk 0:00:34.7]} 44. Be3 {[%clk 0:00:09.3]}
44... h5 {[%clk 0:00:33.4]} 45. g3 {[%clk 0:00:10]} 45... h4 {[%clk 0:00:32.8]}
46. Kg2 {[%clk 0:00:10.9]} 46... hxg3 {[%clk 0:00:33.1]} 47. Nxg3 {[%clk
0:00:10.8]} 47... Rd3 {[%clk 0:00:32.2]} 48. Rb6+ {[%clk 0:00:09]} 48... Kf7
{[%clk 0:00:32.8]} 49. Rb5 {[%clk 0:00:09.3]} 49... Ke6 {[%clk 0:00:32.6]} 50.
Ra5 {[%clk 0:00:08.8]} 50... Rb3 {[%clk 0:00:30.7]} 51. Ra2 {[%clk 0:00:09.5]}
51... Rd3 {[%clk 0:00:26]} 52. Rc2 {[%clk 0:00:08.8]} 52... Rb3 {[%clk
0:00:26.1]} 53. Ne2 {[%clk 0:00:09.6]} 53... Rb7 {[%clk 0:00:24.3]} 54. Rc6+
{[%clk 0:00:09.9]} 54... Kf7 {[%clk 0:00:25.5]} 55. Bd4 {[%clk 0:00:10.5]} 55...
Bxd4 {[%clk 0:00:22.6]} 56. Nxd4 {[%clk 0:00:12.4]} 56... Re7 {[%clk 0:00:22.7]}
57. Kf1 {[%clk 0:00:11.1]} 57... f4 {[%clk 0:00:21.8]} 58. Ke2 {[%clk
0:00:09.3]} 58... g5 {[%clk 0:00:20.8]} 59. Nf5 {[%clk 0:00:09.3]} 59... Re6
{[%clk 0:00:20.4]} 60. Rc8 {[%clk 0:00:06.2]} 60... Ra6 {[%clk 0:00:17.8]} 61.
Rc2 {[%clk 0:00:05.2]} 61... Kf6 {[%clk 0:00:16.2]} 62. Nd4 {[%clk 0:00:06.6]}
62... Rd6 {[%clk 0:00:13.8]} 63. Nb5 {[%clk 0:00:05.9]} 63... Rd5 {[%clk
0:00:12.7]} 64. Nc3 {[%clk 0:00:06.9]} 64... Re5 {[%clk 0:00:14]} 65. Ra2 {[%clk
0:00:08]} 65... Kg6 {[%clk 0:00:14.5]} 66. Ra6+ {[%clk 0:00:08.7]} 66... Kh5
{[%clk 0:00:14.7]} 67. Rf6 {[%clk 0:00:09.5]} 67... e3 {[%clk 0:00:13.7]} 68. f3
{[%clk 0:00:06.2]} 68... Ra5 {[%clk 0:00:14.5]} 69. Ne4 {[%clk 0:00:05.5]} 69...
Ra2+ {[%clk 0:00:13.6]} 70. Ke1 {[%clk 0:00:05.6]} 70... Ra1+ {[%clk 0:00:14.3]}
71. Ke2 {[%clk 0:00:06.3]} 71... Ra2+ {[%clk 0:00:16.2]} 72. Kd3 {[%clk
0:00:05.9]} 72... e2 {[%clk 0:00:12.2]} 73. Re6 {[%clk 0:00:06.9]} 73... e1=Q
{[%clk 0:00:09.5]} 74. Nf6+ {[%clk 0:00:08.4]} 74... Kg6 {[%clk 0:00:06.4]} 75.
Rxe1 {[%clk 0:00:10.1]} 75... Kxf6 {[%clk 0:00:07.5]} 76. Rb1 {[%clk 0:00:12]}
76... Ra3+ {[%clk 0:00:08.2]} 77. Ke2 {[%clk 0:00:13.5]} 77... Ra2+ {[%clk
0:00:09.4]} 78. Kd3 {[%clk 0:00:15.2]} 78... Rh2 {[%clk 0:00:09.6]} 79. Ke4
{[%clk 0:00:14.1]} 79... Rxh3 {[%clk 0:00:10.6]} 80. Rb6+ {[%clk 0:00:15.4]}
80... Kg7 {[%clk 0:00:11.1]} 81. Ra6 {[%clk 0:00:17.1]} 81... Rg3 {[%clk
0:00:11]} 82. Rc6 {[%clk 0:00:17.2]} 82... Rg2 {[%clk 0:00:11.1]} 83. Kf5 {[%clk
0:00:18.4]} 83... Rg3 {[%clk 0:00:11.2]} 84. Rc7+ {[%clk 0:00:20]} 84... Kf8
{[%clk 0:00:10.8]} 85. Rc3 {[%clk 0:00:17.5]} 85... g4 {[%clk 0:00:09.3]} 86.
Rc8+ {[%clk 0:00:18.3]} 86... Ke7 {[%clk 0:00:10.3]} 87. fxg4 {[%clk 0:00:20.2]}
87... f3 {[%clk 0:00:10.9]} 88. Rc2 {[%clk 0:00:09.6]} 88... Rg2 {[%clk
0:00:10.7]} 89. Rc3 {[%clk 0:00:11.1]} 89... f2 {[%clk 0:00:10.8]} 90. Rf3
{[%clk 0:00:11.6]} 90... Kf7 {[%clk 0:00:11.1]} 91. Kg5+ {[%clk 0:00:13.1]}
91... Kg7 {[%clk 0:00:11.5]} 92. Kh4 {[%clk 0:00:14.4]} 92... Kg6 {[%clk
0:00:11.3]} 93. Rf8 {[%clk 0:00:15.5]} 93... Kg7 {[%clk 0:00:11.3]} 94. Rf4
{[%clk 0:00:16.7]} 94... Kg6 {[%clk 0:00:10.3]} 95. Rf5 {[%clk 0:00:18.2]} 95...
Kg7 {[%clk 0:00:08.4]} 96. Kh3 {[%clk 0:00:19.5]} 96... Rg1 {[%clk 0:00:08.8]}
97. Rxf2 {[%clk 0:00:20.9]} 97... Ra1 {[%clk 0:00:10.2]} 98. Kh4 {[%clk
0:00:21.9]} 98... Ra5 {[%clk 0:00:11]} 99. Rb2 {[%clk 0:00:23]} 99... Rc5 {[%clk
0:00:11.8]} 100. Rb7+ {[%clk 0:00:22.2]} 100... Kg6 {[%clk 0:00:12.4]} 101. Rb6+
{[%clk 0:00:23.8]} 101... Kg7 {[%clk 0:00:13.1]} 102. Re6 {[%clk 0:00:23.9]}
102... Rb5 {[%clk 0:00:11.7]} 103. g5 {[%clk 0:00:24]} 103... Rb1 {[%clk
0:00:12.7]} 104. Re4 {[%clk 0:00:24.8]} 104... Rh1+ {[%clk 0:00:12.8]} 105. Kg4
{[%clk 0:00:26.3]} 105... Rg1+ {[%clk 0:00:12.1]} 106. Kf5 {[%clk 0:00:27.4]}
106... Rf1+ {[%clk 0:00:13.3]} 107. Ke6 {[%clk 0:00:28.6]} 107... Kg6 {[%clk
0:00:13.9]} 108. Re5 {[%clk 0:00:30]} 108... Rg1 {[%clk 0:00:15.1]} 109. Ra5
{[%clk 0:00:30.8]} 109... Rxg5 {[%clk 0:00:15.6]} 110. Ra8 {[%clk 0:00:30.8]}
110... Rg4 {[%clk 0:00:15.7]} 111. Rg8+ {[%clk 0:00:31.1]} 111... Kh5 {[%clk
0:00:16.8]} 112. Rh8+ {[%clk 0:00:32.8]} 112... Kg5 {[%clk 0:00:17.5]} 113. Rg8+
{[%clk 0:00:34.4]} 113... Kf4 {[%clk 0:00:18.7]} 114. Ra8 {[%clk 0:00:35.7]}
114... Rg6+ {[%clk 0:00:19.3]} 115. Kd5 {[%clk 0:00:36.9]} 115... Rg5+ {[%clk
0:00:20.6]} 116. Kd4 {[%clk 0:00:38.6]} 116... Rf5 {[%clk 0:00:21.7]} 117. Ra1
{[%clk 0:00:40.2]} 117... Kg5 {[%clk 0:00:22.9]} 118. Ke4 {[%clk 0:00:41.9]}
118... Rf7 {[%clk 0:00:23.2]} 119. Rg1+ {[%clk 0:00:42.6]} 119... Kh4 {[%clk
0:00:24.4]} 120. Ke5 {[%clk 0:00:43.7]} 120... Rf2 {[%clk 0:00:25.1]} 121. Rg6
{[%clk 0:00:44.6]} 121... Rf1 {[%clk 0:00:25.8]} 122. Ke4 {[%clk 0:00:46.3]}
122... Rf2 {[%clk 0:00:26.8]} 123. Ke3 {[%clk 0:00:47.7]} 123... Rf8 {[%clk
0:00:28]} 124. Rg1 {[%clk 0:00:48.5]} 124... Rf7 {[%clk 0:00:28.3]} 125. Rg8
{[%clk 0:00:50.2]} 125... Rf6 {[%clk 0:00:28.1]} 126. Rg7 {[%clk 0:00:51.7]}
126... Rf8 {[%clk 0:00:28.7]} 127. Rg2 {[%clk 0:00:52]} 127... Kh3 {[%clk
0:00:29.3]} 128. Rb2 {[%clk 0:00:52.5]} 128... Kh4 {[%clk 0:00:29.4]} 129. Ke4
{[%clk 0:00:54.4]} 129... Kg4 {[%clk 0:00:27.1]} 130. Rg2+ {[%clk 0:00:55.2]}
130... Kh5 {[%clk 0:00:27.8]} 131. Rg1 {[%clk 0:00:57.1]} 131... Kh4 {[%clk
0:00:28.1]} 132. Kd5 {[%clk 0:00:58.4]} 132... Re8 {[%clk 0:00:28.2]} 133. Kd6
{[%clk 0:00:59.5]} 133... Re2 {[%clk 0:00:28.5]} 134. Kd5 {[%clk 0:01:00.5]}
134... Re8 {[%clk 0:00:27.4]} 135. Kd4 {[%clk 0:00:59.8]} 1/2-1/2

[Event "*** Titled Tuesday Blitz"]
[Site "Chess.com"]
[Date "2019.11.05"]
[Round "2"]
[White "WeAintSurePal"]
[Black "Svet99"]
[Result "1-0"]
[WhiteElo "2442"]
[BlackElo "2154"]
[TimeControl "180+2"]
[EndTime "13:17:11 PST"]
[Termination "WeAintSurePal won by resignation"]

1. e4 {[%clk 0:02:58.4]} 1... c6 {[%clk 0:03:00.4]} 2. d4 {[%clk 0:02:59]} 2...
d5 {[%clk 0:03:00.5]} 3. e5 {[%clk 0:02:58.6]} 3... Bf5 {[%clk 0:03:00.6]} 4.
Nf3 {[%clk 0:02:58.7]} 4... e6 {[%clk 0:03:00.6]} 5. Be2 {[%clk 0:02:59.9]} 5...
Ne7 {[%clk 0:03:00.3]} 6. O-O {[%clk 0:03:01.4]} 6... h6 {[%clk 0:02:58.6]} 7.
c4 {[%clk 0:03:03.3]} 7... Bg6 {[%clk 0:02:58.8]} 8. Nc3 {[%clk 0:03:04.2]} 8...
Nf5 {[%clk 0:02:59.6]} 9. cxd5 {[%clk 0:03:03.1]} 9... exd5 {[%clk 0:02:56.9]}
10. Re1 {[%clk 0:03:02.8]} 10... Be7 {[%clk 0:02:55.7]} 11. e6 {[%clk
0:03:03.8]} 11... f6 {[%clk 0:02:52.4]} 12. Bd3 {[%clk 0:03:01.6]} 12... Bd6
{[%clk 0:02:50.8]} 13. Qc2 {[%clk 0:03:01.1]} 13... h5 {[%clk 0:02:47.2]} 14.
Bxf5 {[%clk 0:03:00.5]} 1-0

[Event "*** Titled Tuesday Blitz"]
[Site "Chess.com"]
[Date "2019.11.05"]
[Round "2"]
[White "pedroholly22"]
[Black "Borsuk_Konstantin"]
[Result "1-0"]
[WhiteElo "2346"]
[BlackElo "2521"]
[TimeControl "180+2"]
[EndTime "13:17:28 PST"]
[Termination "pedroholly22 won by resignation"]

1. e4 {[%clk 0:03:01.9]} 1... e6 {[%clk 0:03:00.5]} 2. d4 {[%clk 0:03:02.4]}
2... d5 {[%clk 0:03:01.7]} 3. Nc3 {[%clk 0:03:03.2]} 3... Bb4 {[%clk 0:03:02.2]}
4. e5 {[%clk 0:03:04]} 4... b6 {[%clk 0:03:02.5]} 5. Qg4 {[%clk 0:02:41]} 5...
Bf8 {[%clk 0:03:03]} 6. Nf3 {[%clk 0:02:40]} 6... h6 {[%clk 0:03:00.2]} 7. Bd3
{[%clk 0:02:37.5]} 7... Ba6 {[%clk 0:03:00.4]} 8. O-O {[%clk 0:02:37.9]} 8...
Ne7 {[%clk 0:02:59.3]} 9. Nh4 {[%clk 0:02:36.6]} 9... c5 {[%clk 0:02:52.2]} 10.
dxc5 {[%clk 0:02:34]} 10... bxc5 {[%clk 0:02:50.5]} 11. Bxa6 {[%clk 0:02:31]}
11... Nxa6 {[%clk 0:02:50.6]} 12. Qa4+ {[%clk 0:02:30.9]} 1-0

[Event "*** Titled Tuesday Blitz"]
[Site "Chess.com"]
[Date "2019.11.05"]
[Round "2"]
[White "MartinZumsande"]
[Black "MalyDominator"]
[Result "1-0"]
[WhiteElo "2498"]
[BlackElo "2207"]
[TimeControl "180+2"]
[EndTime "13:17:41 PST"]
[Termination "MartinZumsande won by resignation"]

1. e4 {[%clk 0:03:00.9]} 1... c5 {[%clk 0:02:59]} 2. Nf3 {[%clk 0:03:01]} 2...
Nc6 {[%clk 0:02:58.8]} 3. c3 {[%clk 0:03:02.1]} 3... d5 {[%clk 0:02:57.6]} 4.
exd5 {[%clk 0:03:03]} 4... Qxd5 {[%clk 0:02:59.4]} 5. d4 {[%clk 0:03:04.6]} 5...
cxd4 {[%clk 0:02:59.7]} 6. cxd4 {[%clk 0:03:05]} 6... Bf5 {[%clk 0:02:57]} 7.
Nc3 {[%clk 0:03:04.1]} 7... Qd7 {[%clk 0:02:53.5]} 8. d5 {[%clk 0:03:02.5]} 8...
Nb4 {[%clk 0:02:43.9]} 9. Bb5 {[%clk 0:02:59.3]} 9... Nc2+ {[%clk 0:02:35.6]}
10. Ke2 {[%clk 0:02:55.1]} 10... Nxa1 {[%clk 0:02:35]} 11. Bxd7+ {[%clk
0:02:55.4]} 11... Bxd7 {[%clk 0:02:36.8]} 12. Be3 {[%clk 0:02:53]} 12... Nf6
{[%clk 0:02:32.2]} 13. Qd2 {[%clk 0:02:47.9]} 1-0

[Event "*** Titled Tuesday Blitz"]
[Site "Chess.com"]
[Date "2019.11.05"]
[Round "2"]
[White "DonPreuss"]
[Black "dimke2802"]
[Result "0-1"]
[WhiteElo "2122"]
[BlackElo "2434"]
[TimeControl "180+2"]
[EndTime "13:18:32 PST"]
[Termination "dimke2802 won by resignation"]

1. d4 {[%clk 0:03:01.9]} 1... Nf6 {[%clk 0:03:00.9]} 2. Nc3 {[%clk 0:03:02.3]}
2... g6 {[%clk 0:03:02.3]} 3. e4 {[%clk 0:03:03.8]} 3... d6 {[%clk 0:03:03.5]}
4. f4 {[%clk 0:03:05.1]} 4... c5 {[%clk 0:03:01.7]} 5. d5 {[%clk 0:02:58.3]}
5... Bg7 {[%clk 0:03:02.1]} 6. Nf3 {[%clk 0:02:59.1]} 6... O-O {[%clk
0:03:02.6]} 7. a4 {[%clk 0:02:54.6]} 7... e6 {[%clk 0:03:03.6]} 8. dxe6 {[%clk
0:02:54.2]} 8... fxe6 {[%clk 0:03:03.4]} 9. Bc4 {[%clk 0:02:54.8]} 9... Kh8
{[%clk 0:03:00.2]} 10. O-O {[%clk 0:02:54.2]} 10... Nc6 {[%clk 0:02:59.9]} 11.
e5 {[%clk 0:02:47.8]} 11... dxe5 {[%clk 0:02:58.4]} 12. Qxd8 {[%clk 0:02:44.6]}
12... Rxd8 {[%clk 0:02:58.7]} 13. fxe5 {[%clk 0:02:45.6]} 13... Ng4 {[%clk
0:02:56.9]} 14. Ng5 {[%clk 0:02:41.7]} 14... Ngxe5 {[%clk 0:02:54.1]} 15. Bxe6
{[%clk 0:02:38.1]} 15... h6 {[%clk 0:02:49.8]} 16. Nf7+ {[%clk 0:02:35.2]} 16...
Nxf7 {[%clk 0:02:50]} 17. Bxf7 {[%clk 0:02:37.1]} 17... Bf5 {[%clk 0:02:49]} 18.
Be3 {[%clk 0:02:32.9]} 18... Nd4 {[%clk 0:02:45.1]} 19. Rf2 {[%clk 0:02:01.8]}
19... Nxc2 {[%clk 0:02:44.3]} 0-1

[Event "*** Titled Tuesday Blitz"]
[Site "Chess.com"]
[Date "2019.11.05"]
[Round "2"]
[White "vlad_Sid"]
[Black "Bishops83"]
[Result "1-0"]
[WhiteElo "2514"]
[BlackElo "2278"]
[TimeControl "180+2"]
[EndTime "13:18:35 PST"]
[Termination "vlad_Sid won by resignation"]

1. e4 {[%clk 0:03:01.9]} 1... c5 {[%clk 0:03:00.2]} 2. Nf3 {[%clk 0:03:03]} 2...
Nc6 {[%clk 0:02:59.7]} 3. d4 {[%clk 0:03:03.8]} 3... cxd4 {[%clk 0:03:01.6]} 4.
Nxd4 {[%clk 0:03:05.3]} 4... g6 {[%clk 0:03:02.7]} 5. c4 {[%clk 0:03:05.2]} 5...
Bg7 {[%clk 0:03:03.6]} 6. Be3 {[%clk 0:03:05.8]} 6... Nf6 {[%clk 0:03:04]} 7.
Nc3 {[%clk 0:03:06.1]} 7... O-O {[%clk 0:03:05]} 8. Be2 {[%clk 0:03:06.8]} 8...
d6 {[%clk 0:03:06.1]} 9. O-O {[%clk 0:03:03.9]} 9... Bd7 {[%clk 0:03:06.5]} 10.
f3 {[%clk 0:03:03.4]} 10... Nxd4 {[%clk 0:03:05.7]} 11. Bxd4 {[%clk 0:03:04.4]}
11... a5 {[%clk 0:03:07.5]} 12. Qd2 {[%clk 0:03:03.3]} 12... Bc6 {[%clk
0:03:05.5]} 13. Kh1 {[%clk 0:03:02.2]} 13... Nd7 {[%clk 0:03:05.1]} 14. Be3
{[%clk 0:02:55.6]} 14... a4 {[%clk 0:03:05.8]} 15. Rfc1 {[%clk 0:02:46.5]} 15...
Qa5 {[%clk 0:03:02.8]} 16. Rab1 {[%clk 0:02:46.1]} 16... Rfc8 {[%clk 0:03:02.9]}
17. Qe1 {[%clk 0:02:17.2]} 17... h5 {[%clk 0:02:58.4]} 18. Qf2 {[%clk
0:02:14.2]} 18... Qb4 {[%clk 0:02:48.6]} 19. Bd2 {[%clk 0:01:55.4]} 19... Qc5
{[%clk 0:02:48.9]} 20. Be3 {[%clk 0:01:55.9]} 20... Qxc4 {[%clk 0:02:49.8]} 21.
Bxc4 {[%clk 0:01:56.1]} 1-0